bitfinex/quotes_BTCUSD_20250320
["timestamp","ask_amount","ask_price","bid_price","bid_amount"]
[1742484054522,0.4256159,85834.0,85833.0,0.37023503]
[1742484054724,0.4284577,85834.0,85833.0,0.37023503]
[1742484055509,0.3028418,85834.0,85833.0,0.38494538]
[1742484055918,0.3028418,85834.0,85833.0,0.54324538]
[1742484055919,8e-07,85834.0,85833.0,0.54324538]
[1742484056068,0.000339,85857.0,85856.0,0.25913585]
[1742484056401,0.000339,85857.0,85856.0,0.52215088]
[1742484056539,0.00046359,85857.0,85856.0,0.52215088]
[1742484056952,0.00940749,85857.0,85856.0,0.52215088]
[1742484057193,0.00046359,85857.0,85856.0,0.52215088]
[1742484058375,0.00046359,85857.0,85856.0,0.52715088]
[1742484058889,0.00046359,85857.0,85856.0,0.52215088]
[1742484059088,0.00046359,85857.0,85856.0,0.52815088]
[1742484059293,0.0093287,85857.0,85856.0,0.50196303]
[1742484059456,0.00046359,85857.0,85856.0,0.26301503]
[1742484059655,0.00046359,85857.0,85856.0,0.26901503]
[1742484059857,0.00324392,85857.0,85856.0,0.26901503]
[1742484060083,0.00046359,85857.0,85856.0,0.26901503]
[1742484060597,0.00046359,85857.0,85856.0,0.29272471]
[1742484061039,0.43490322,85857.0,85856.0,0.02970968]
[1742484061239,0.311648,85849.0,85840.0,0.1434]
[1742484061441,0.544657,85834.0,85833.0,0.0001695]
[1742484061638,1.3491019,85834.0,85833.0,0.0001695]
[1742484061865,3.1085969,85834.0,85833.0,0.0001695]
[1742484062048,0.544663,85832.0,85831.0,0.0001695]
[1742484062379,4.46219613,85832.0,85831.0,0.0001695]
[1742484063247,4.06990824,85832.0,85831.0,0.0001695]
[1742484063452,3.96700924,85832.0,85831.0,0.0001695]
[1742484063658,3.11582624,85832.0,85831.0,0.0001695]
[1742484065053,1.45374421,85832.0,85831.0,0.0021695]
[1742484065251,0.32675021,85832.0,85831.0,0.0021695]
[1742484065452,0.32760421,85832.0,85831.0,0.0001695]
[1742484065690,0.32760421,85832.0,85831.0,0.0011695]
[1742484065893,0.18038821,85832.0,85831.0,0.0011695]
[1742484066103,0.18038821,85832.0,85831.0,0.14285674]
[1742484066104,0.01160521,85832.0,85831.0,0.14285674]
[1742484066535,0.30885611,85832.0,85831.0,0.14385674]
[1742484067013,0.31153036,85832.0,85831.0,0.14385674]
[1742484067170,0.31153036,85832.0,85831.0,0.02428171]
[1742484067532,0.31153036,85832.0,85831.0,0.0011695]
[1742484067741,0.31153036,85832.0,85831.0,0.0001695]
[1742484067915,0.01153036,85832.0,85831.0,0.0001695]
[1742484068117,0.01153036,85832.0,85831.0,0.0041695]
[1742484068343,0.01153036,85832.0,85831.0,0.0001695]
[1742484068760,0.32318036,85832.0,85831.0,0.0061695]
[1742484068971,1.06934136,85832.0,85831.0,0.0061695]
[1742484069168,0.99945136,85832.0,85831.0,0.0061695]
[1742484069309,0.82791036,85832.0,85831.0,0.0061695]
[1742484069527,0.31153036,85832.0,85831.0,0.0061695]
[1742484069726,0.01153036,85832.0,85831.0,0.0061695]
[1742484070402,0.01153036,85832.0,85831.0,0.13739453]
[1742484070538,0.01153036,85832.0,85831.0,0.28079453]
[1742484070741,0.0003392,85833.0,85832.0,0.25920385]
[1742484071039,0.0003392,85833.0,85832.0,0.37877888]
[1742484072453,0.0003392,85833.0,85832.0,0.11957503]
[1742484073258,0.0003392,85833.0,85832.0,0.13122503]
[1742484073698,0.0003392,85833.0,85832.0,0.13355482]
[1742484074105,0.0003392,85833.0,85832.0,0.13122503]
[1742484074308,0.0003392,85833.0,85832.0,0.12557503]
[1742484074512,0.0003392,85833.0,85832.0,0.1494]
[1742484074720,0.0003392,85833.0,85832.0,0.382413]
[1742484075067,0.0119892,85833.0,85832.0,0.1434]
[1742484075279,0.544672,85829.0,85828.0,0.02326491]
[1742484075485,0.3,85817.0,85814.0,0.11192729]
[1742484075685,0.011652,85815.0,85814.0,0.11192729]
[1742484075930,1.042585,85815.0,85814.0,0.11192729]
[1742484076139,0.833413,85815.0,85814.0,0.11192729]
[1742484076354,0.69613465,85815.0,85814.0,0.11192729]
[1742484076535,0.71441274,85815.0,85814.0,0.11192729]
[1742484077982,0.72317316,85815.0,85814.0,0.11192729]
[1742484078208,0.72317316,85815.0,85814.0,0.11492729]
[1742484078622,0.47846216,85815.0,85814.0,0.11492729]
[1742484078838,0.00267765,85815.0,85814.0,0.50273961]
[1742484079001,0.00267765,85815.0,85814.0,0.51728046]
[1742484079228,0.0003392,85833.0,85828.0,0.233021]
[1742484079423,0.00038071,85833.0,85829.0,0.26297503]
[1742484079709,0.0003392,85831.0,85830.0,0.233018]
[1742484079844,0.0003392,85831.0,85830.0,0.11957503]
[1742484080044,0.0003392,85831.0,85830.0,0.35259303]
[1742484080243,0.0003392,85831.0,85829.0,0.1434]
[1742484080766,0.00267555,85830.0,85829.0,0.1434]
[1742484080969,0.00267555,85830.0,85814.0,0.13544958]
[1742484081170,0.3,85828.0,85814.0,0.14044958]
[1742484081370,0.011652,85819.0,85814.0,0.11192729]
[1742484081573,0.3,85817.0,85814.0,0.11192729]
[1742484081939,0.3,85817.0,85816.0,0.244708]
[1742484082143,0.3,85817.0,85816.0,0.36428303]
[1742484082544,0.3,85830.0,85820.0,0.233043]
[1742484082763,0.00922661,85831.0,85826.0,0.011651]
[1742484082964,0.00266469,85829.0,85822.0,0.1434]
[1742484083170,0.0003392,85831.0,85822.0,0.1434]
[1742484083347,0.3003392,85831.0,85822.0,0.1434]
[1742484083539,0.00267243,85830.0,85822.0,0.1434]
[1742484084239,0.00267243,85830.0,85822.0,0.37644]
[1742484084402,0.00267243,85830.0,85825.0,0.011651]
[1742484084611,0.00267243,85830.0,85829.0,0.233021]
[1742484084819,0.00267243,85830.0,85829.0,0.244672]
[1742484085040,0.0003392,85831.0,85830.0,0.244668]
[1742484085539,0.0003392,85831.0,85828.0,0.233023]
[1742484085696,0.0003392,85831.0,85828.0,0.11957503]
[1742484086109,0.0003392,85831.0,85825.0,0.233031]
[1742484086315,0.0003392,85831.0,85826.0,0.11957503]
[1742484086494,0.0003392,85831.0,85826.0,0.13122603]
[1742484086702,0.0003392,85831.0,85827.0,0.233024]
[1742484086902,0.0003392,85831.0,85827.0,0.11957503]
[1742484087333,0.0003392,85831.0,85827.0,0.35260103]
[1742484087741,0.0003392,85831.0,85829.0,0.005]
[1742484087967,0.0003392,85831.0,85827.0,0.35260103]
[1742484087968,0.0003392,85831.0,85827.0,0.11957503]
[1742484088488,0.533024,85828.0,85827.0,0.004]
[1742484088636,0.3,85827.0,85824.0,0.02287305]
[1742484088840,0.233021,85829.0,85824.0,0.02287305]
[1742484089080,0.0003392,85831.0,85814.0,0.11192729]
[1742484089081,0.011652,85818.0,85814.0,0.11192729]
[1742484089284,0.544711,85815.0,85814.0,0.11192729]
[1742484089480,0.684767,85815.0,85814.0,0.11192729]
[1742484089697,0.511666,85815.0,85814.0,0.11192729]
[1742484090119,0.744725,85815.0,85814.0,0.11192729]
[1742484090510,0.756377,85815.0,85814.0,0.11192729]
[1742484090713,0.511666,85815.0,85814.0,0.11192729]
[1742484090917,0.639411,85815.0,85814.0,0.11192729]
[1742484091185,0.651063,85815.0,85814.0,0.11192729]
[1742484091402,0.77063803,85815.0,85814.0,0.11192729]
[1742484091615,0.77063803,85815.0,85814.0,2.9e-07]
[1742484091616,0.91996035,85815.0,85814.0,2.9e-07]
[1742484091809,0.95142534,85815.0,85814.0,0.00600029]
[1742484092143,0.91408603,85815.0,85814.0,0.00600029]
[1742484092577,0.011653,85811.0,85810.0,6e-07]
[1742484092749,0.011653,85811.0,85771.0,0.14436]
[1742484092750,0.544757,85799.0,85798.0,7e-07]
[1742484092977,0.80769203,85799.0,85798.0,7e-07]
[1742484093717,0.3,85799.0,85798.0,7e-07]
[1742484093952,0.54479849,85799.0,85798.0,7e-07]
[1742484094356,0.30004149,85799.0,85798.0,7e-07]
[1742484094734,0.30965693,85799.0,85798.0,7e-07]
[1742484094936,0.32131193,85799.0,85798.0,7e-07]
[1742484095137,0.32031193,85799.0,85798.0,7e-07]
[1742484095539,0.32031193,85799.0,85798.0,0.0010007]
[1742484095740,2.81332393,85799.0,85798.0,7e-07]
[1742484095944,0.32694152,85799.0,85798.0,7e-07]
[1742484096148,0.02694152,85799.0,85798.0,7e-07]
[1742484096573,0.33859652,85799.0,85798.0,7e-07]
[1742484096772,0.33859652,85799.0,85798.0,0.0010007]
[1742484096927,0.32694152,85799.0,85798.0,0.0010007]
[1742484097134,0.33859652,85799.0,85798.0,0.0010007]
[1742484097550,0.45817155,85799.0,85798.0,0.0010007]
[1742484097963,2.38674255,85799.0,85798.0,7e-07]
[1742484098167,0.54097155,85799.0,85798.0,7e-07]
[1742484098546,0.54097155,85799.0,85798.0,0.0020007]
[1742484098730,0.54097155,85799.0,85798.0,7e-07]
[1742484098946,0.33859652,85799.0,85798.0,0.0010007]
[1742484099094,0.32694152,85799.0,85798.0,0.0010007]
[1742484099298,0.33859652,85799.0,85798.0,7e-07]
[1742484099495,0.45817155,85799.0,85798.0,7e-07]
[1742484099906,0.45817155,85799.0,85798.0,0.02380899]
[1742484100103,0.45817155,85799.0,85798.0,7e-07]
[1742484100808,0.43988696,85799.0,85798.0,7e-07]
[1742484101218,0.45442781,85799.0,85798.0,7e-07]
[1742484101428,0.45442781,85799.0,85781.0,0.002]
[1742484101429,0.544806,85782.0,85781.0,0.002]
[1742484101751,4.74703303,85782.0,85781.0,0.002]
[1742484102478,4.74703303,85782.0,85771.0,0.001]
[1742484102479,0.544857,85764.0,85745.0,0.0001695]
[1742484102686,0.544888,85753.0,85745.0,0.0001695]
[1742484102900,0.544888,85753.0,85752.0,7e-07]
[1742484102901,6.36726388,85753.0,85752.0,7e-07]
[1742484103099,1.36226388,85753.0,85752.0,7e-07]
[1742484103470,1.50562388,85753.0,85752.0,7e-07]
[1742484103872,1.53280501,85753.0,85752.0,0.0004168]
[1742484104281,1.37490416,85753.0,85752.0,0.0004168]
[1742484104460,1.51830416,85753.0,85752.0,0.0004168]
[1742484104845,1.53970166,85753.0,85752.0,0.0004168]
[1742484105046,1.26800166,85753.0,85752.0,0.0004168]
[1742484105284,1.41140166,85753.0,85752.0,0.0004168]
[1742484105684,1.42794251,85753.0,85752.0,0.0004168]
[1742484105940,0.3,85737.0,85728.0,0.0001695]
[1742484106095,0.533273,85737.0,85728.0,0.00029426]
[1742484106257,0.011664,85729.0,85728.0,0.00029426]
[1742484106527,0.886229,85729.0,85728.0,0.00029426]
[1742484106689,0.90452493,85729.0,85728.0,0.00029426]
[1742484106887,0.89286093,85729.0,85728.0,0.00029426]
[1742484107488,0.67307693,85729.0,85728.0,0.00029426]
[1742484107689,0.31829593,85729.0,85728.0,0.00029426]
[1742484107903,0.32702365,85729.0,85728.0,0.01195826]
[1742484108354,0.32702365,85729.0,85728.0,0.00029426]
[1742484108974,0.32702365,85729.0,85728.0,0.13153329]
[1742484109117,0.253953,85740.0,85737.0,0.011663]
[1742484109317,0.253953,85740.0,85733.0,0.233281]
[1742484109528,0.253953,85740.0,85728.0,0.00029426]
[1742484109529,0.311663,85736.0,85728.0,0.00029426]
[1742484109707,0.3,85733.0,85728.0,0.00429426]
[1742484109921,0.3,85733.0,85731.0,0.233286]
[1742484110120,0.3,85739.0,85738.0,0.233268]
[1742484110948,0.3,85739.0,85737.0,0.233271]
[1742484111175,0.00896709,85740.0,85737.0,0.233271]
[1742484111375,0.01829479,85742.0,85734.0,0.233279]
[1742484111626,0.3,85740.0,85730.0,0.14344]
[1742484111842,0.553953,85740.0,85730.0,0.14344]
[1742484111959,0.26293237,85740.0,85739.0,0.233266]
[1742484112167,0.26293237,85740.0,85735.0,0.233274]
[1742484112168,0.00897937,85740.0,85735.0,0.233274]
[1742484112366,0.3,85739.0,85735.0,0.233274]
[1742484112571,0.3,85739.0,85738.0,0.233268]
[1742484112880,0.3,85739.0,85738.0,0.236268]
[1742484113124,0.3,85739.0,85737.0,0.233271]
[1742484113433,0.00897761,85740.0,85739.0,0.233266]
[1742484113666,0.3,85748.0,85742.0,0.233257]
[1742484113870,0.30881102,85748.0,85743.0,0.233253]
[1742484114081,0.3,85746.0,85736.0,0.02371116]
[1742484114285,0.3,85744.0,85738.0,0.004]
[1742484114482,0.311663,85738.0,85720.0,0.011665]
[1742484114688,0.3,85730.0,85718.0,0.011666]
[1742484114907,0.3,85727.0,85722.0,0.233312]
[1742484115117,0.3,85727.0,85718.0,0.011666]
[1742484115405,0.3,85727.0,85723.0,0.02349492]
[1742484115974,0.3,85730.0,85723.0,0.02349492]
[1742484116244,1.296873,85730.0,85723.0,0.02349492]
[1742484116425,0.3,85725.0,85718.0,0.004]
[1742484116629,0.3,85727.0,85722.0,0.23331]
[1742484117090,0.3,85727.0,85720.0,0.03462695]
[1742484117267,0.3,85727.0,85723.0,0.004]
[1742484117501,0.233301,85726.0,85720.0,0.02296195]
[1742484117672,0.233315,85721.0,85718.0,0.0001698]
[1742484117898,0.311665,85725.0,85718.0,0.0001698]
[1742484118099,0.3,85722.0,85718.0,0.0001698]
[1742484118224,0.53332,85719.0,85718.0,0.0001698]
[1742484118437,0.3,85719.0,85718.0,0.0001698]
[1742484119063,0.31147434,85719.0,85718.0,0.0001698]
[1742484119512,1.37343634,85719.0,85718.0,0.0041698]
[1742484119741,0.72878034,85719.0,85718.0,0.0041698]
[1742484120224,0.97376634,85719.0,85718.0,0.0041698]
[1742484120797,0.98239548,85719.0,85718.0,0.0041698]
[1742484121847,0.73640948,85719.0,85718.0,0.0001698]
[1742484122048,0.32010348,85719.0,85718.0,0.0001698]
[1742484122250,0.32110348,85719.0,85718.0,0.0041698]
[1742484122521,0.56679148,85719.0,85718.0,0.0041698]
[1742484122703,0.32110348,85719.0,85718.0,0.0041698]
[1742484122917,0.32110348,85719.0,85718.0,0.36873383]
[1742484123136,0.32010348,85719.0,85718.0,0.35306783]
[1742484123297,0.32010348,85719.0,85718.0,0.02377483]
[1742484123500,0.61600248,85719.0,85718.0,0.02477483]
[1742484123703,0.43886848,85719.0,85718.0,0.02377483]
[1742484124038,0.45053448,85719.0,85718.0,0.0001698]
[1742484124353,0.68385448,85719.0,85718.0,0.0001698]
[1742484125092,0.88452951,85719.0,85718.0,0.0041698]
[1742484125291,0.90612603,85719.0,85718.0,0.0041698]
[1742484125495,0.90512603,85719.0,85718.0,0.0001698]
[1742484125890,0.90512603,85719.0,85718.0,0.0011698]
[1742484126114,0.90512603,85719.0,85718.0,0.0001698]
[1742484126587,0.90612603,85719.0,85718.0,0.0001698]
[1742484127332,1.04960603,85719.0,85718.0,0.0001698]
[1742484127537,3.31559803,85719.0,85718.0,0.0001698]
[1742484128073,2.66575903,85719.0,85718.0,0.0001698]
[1742484129472,2.546184,85719.0,85718.0,0.0001698]
[1742484129677,2.060689,85719.0,85718.0,0.0001698]
[1742484130491,0.690691,85719.0,85718.0,0.0001698]
[1742484130683,0.36067263,85719.0,85718.0,0.0001698]
[1742484130881,0.12735263,85719.0,85718.0,0.0001698]
[1742484131151,0.02340063,85719.0,85718.0,0.2334928]
[1742484131369,0.02340063,85719.0,85718.0,0.2451588]
[1742484131571,0.02010348,85719.0,85718.0,0.2334928]
[1742484131961,0.000339,85720.0,85719.0,0.244986]
[1742484132174,0.000339,85720.0,85719.0,0.45640188]
[1742484132321,0.01172109,85720.0,85719.0,0.45640188]
[1742484133116,0.0003396,85740.0,85739.0,0.244929]
[1742484133311,0.0003396,85740.0,85739.0,0.50798403]
[1742484133970,0.01211961,85740.0,85739.0,0.50798403]
[1742484135175,0.01211961,85740.0,85739.0,0.50698403]
[1742484135356,6.1e-07,85740.0,85739.0,0.64332488]
[1742484135556,0.1269765,85770.0,85769.0,0.233184]
[1742484135727,0.3,85778.0,85772.0,0.232175]
[1742484135931,0.02117034,85770.0,85769.0,0.233184]
[1742484136131,0.0182901,85770.0,85769.0,0.233184]
[1742484136598,0.0182901,85770.0,85769.0,0.232184]
[1742484136829,0.0182901,85770.0,85769.0,0.23230879]
[1742484137013,0.02061781,85780.0,85779.0,0.233157]
[1742484137265,0.233136,85787.0,85778.0,0.14344]
[1742484137390,0.01828674,85779.0,85771.0,0.14344]
[1742484137588,0.48540024,85778.0,85771.0,0.14344]
[1742484137820,0.3,85776.0,85771.0,0.14344]
[1742484138043,0.27223974,85779.0,85778.0,0.23316]
[1742484138264,0.01828674,85779.0,85778.0,0.244818]
[1742484138487,0.01828674,85779.0,85778.0,0.23316]
[1742484138930,0.01828674,85779.0,85778.0,0.244818]
[1742484139540,0.01828674,85779.0,85778.0,0.249818]
[1742484139743,0.01828674,85779.0,85778.0,0.005]
[1742484139996,0.01828674,85779.0,85778.0,0.23816]
[1742484140195,0.01828674,85779.0,85778.0,0.249818]
[1742484140628,0.01828674,85779.0,85778.0,0.005]
[1742484142573,0.3,85787.0,85785.0,0.244796]
[1742484142749,0.00305926,85786.0,85785.0,0.244796]
[1742484142946,0.3,85795.0,85785.0,0.233139]
[1742484143149,0.3,85795.0,85787.0,0.233135]
[1742484143397,0.00312209,85794.0,85787.0,0.233135]
[1742484143610,0.3,85792.0,85784.0,0.1434]
[1742484143815,0.3,85790.0,85785.0,0.004]
[1742484144048,0.3,85788.0,85785.0,0.004]
[1742484144464,0.00312699,85787.0,85785.0,0.004]
[1742484145209,0.00312699,85787.0,85784.0,0.1434]
[1742484145422,0.533121,85793.0,85784.0,0.1434]
[1742484145625,0.011657,85779.0,85766.0,0.233191]
[1742484145810,0.233147,85783.0,85773.0,0.233172]
[1742484146010,0.01828464,85778.0,85775.0,0.233168]
[1742484146213,0.01328464,85778.0,85774.0,0.25695152]
[1742484146432,0.00312451,85777.0,85774.0,0.25695152]
[1742484146842,0.3,85782.0,85774.0,0.02378352]
[1742484147036,0.3,85780.0,85774.0,0.02378352]
[1742484147237,0.3,85778.0,85774.0,0.02378352]
[1742484147700,0.00312451,85777.0,85774.0,0.02378352]
[1742484147878,0.011658,85774.0,85769.0,0.00029419]
[1742484148096,0.3,85771.0,85769.0,0.00029419]
[1742484148262,0.233176,85772.0,85769.0,0.00029419]
[1742484148263,0.3,85772.0,85769.0,0.00029419]
[1742484148475,0.3,85772.0,85771.0,0.233179]
[1742484148876,0.3,85772.0,85771.0,0.36441203]
[1742484149262,0.3,85783.0,85782.0,0.233146]
[1742484150110,0.30878432,85783.0,85782.0,0.233146]
[1742484150317,0.01188758,85783.0,85782.0,0.233146]
[1742484150512,0.01188758,85783.0,85782.0,0.237146]
[1742484151124,0.01188758,85783.0,85782.0,0.36837803]
[1742484151321,0.00878432,85783.0,85782.0,0.36837803]
[1742484151524,0.01828403,85784.0,85783.0,0.233146]
[1742484151780,0.01828403,85784.0,85782.0,0.11957503]
[1742484152093,0.01828403,85784.0,85782.0,0.004]
[1742484152313,0.02697875,85784.0,85782.0,0.004]
[1742484152507,0.02697875,85784.0,85776.0,0.233165]
[1742484152712,0.02697875,85784.0,85777.0,0.26293503]
[1742484152713,0.3,85782.0,85777.0,0.26293503]
[1742484152925,0.3,85780.0,85777.0,0.14336]
[1742484153144,0.3,85780.0,85778.0,0.233159]
[1742484153338,0.3,85780.0,85776.0,0.233165]
[1742484153558,0.3,85780.0,85777.0,0.233161]
[1742484153740,0.3,85780.0,85779.0,0.233157]
[1742484153944,0.02697875,85784.0,85778.0,0.233159]
[1742484154141,0.124901,85783.0,85779.0,0.233157]
[1742484154281,0.3,85782.0,85779.0,0.233157]
[1742484154487,0.3,85782.0,85780.0,0.233152]
[1742484154688,0.3,85782.0,85778.0,0.233158]
[1742484154885,0.3,85782.0,85778.0,0.011658]
[1742484155086,0.3,85782.0,85781.0,0.233151]
[1742484155329,0.02697875,85784.0,85781.0,0.233151]
[1742484155659,0.3,85782.0,85780.0,0.233153]
[1742484155866,0.3,85782.0,85781.0,0.233151]
[1742484156040,0.7086,85782.0,85781.0,0.233151]
[1742484156237,0.7086,85782.0,85780.0,0.233153]
[1742484156440,0.7086,85782.0,85781.0,0.004]
[1742484156637,0.7086,85782.0,85781.0,0.237151]
[1742484157218,0.7086,85782.0,85780.0,0.233153]
[1742484157419,0.7086,85782.0,85778.0,0.233158]
[1742484157646,0.7086,85782.0,85780.0,0.004]
[1742484157847,0.7086,85782.0,85781.0,0.233151]
[1742484158052,0.7086,85782.0,85781.0,0.36438303]
[1742484159068,0.3,85782.0,85781.0,0.36438303]
[1742484159270,0.00857625,85786.0,85785.0,0.244797]
[1742484159509,0.3,85789.0,85788.0,0.244788]
[1742484159681,0.3,85789.0,85788.0,0.50772303]
[1742484160062,0.30867262,85789.0,85788.0,0.49606703]
[1742484160258,0.30867262,85789.0,85788.0,0.50772303]
[1742484160603,0.00867262,85789.0,85788.0,0.50772303]
[1742484160810,0.3,85797.0,85788.0,0.35270703]
[1742484161021,0.3,85791.0,85788.0,0.005]
[1742484161321,0.54199699,85791.0,85788.0,0.005]
[1742484161559,0.30886799,85791.0,85788.0,0.005]
[1742484161769,0.30886799,85791.0,85790.0,0.244783]
[1742484161973,0.00886799,85791.0,85790.0,0.36435803]
[1742484162188,0.00886799,85791.0,85790.0,0.11957503]
[1742484162397,0.3,85793.0,85789.0,0.233128]
[1742484162546,0.01828311,85791.0,85790.0,0.25640485]
[1742484163008,0.01828311,85791.0,85790.0,0.02327885]
[1742484163146,0.01828311,85791.0,85790.0,0.25640585]
[1742484163367,0.27187415,85791.0,85790.0,0.02827885]
[1742484163573,0.32709415,85791.0,85790.0,0.02827885]
[1742484163783,0.52718115,85791.0,85790.0,0.02827885]
[1742484164212,0.44428115,85791.0,85790.0,0.02827885]
[1742484164417,0.32709415,85791.0,85790.0,0.02827885]
[1742484165016,0.32709415,85791.0,85790.0,0.26140585]
[1742484165219,0.32709415,85791.0,85790.0,0.02827885]
[1742484165456,0.32709415,85791.0,85790.0,0.02327885]
[1742484166627,0.32709415,85791.0,85790.0,0.02727885]
[1742484168072,0.56021815,85791.0,85790.0,0.02727885]
[1742484168315,0.57187415,85791.0,85790.0,0.02727885]
[1742484168544,1.46958015,85791.0,85790.0,0.02727885]
[1742484168972,1.22480015,85791.0,85790.0,0.02727885]
[1742484170493,1.45826275,85791.0,85790.0,0.02727885]
[1742484170638,1.22513875,85791.0,85790.0,0.02727885]
[1742484170839,0.32743275,85791.0,85790.0,0.02727885]
[1742484171854,0.32743275,85791.0,85790.0,0.26040585]
[1742484172197,0.32743275,85791.0,85790.0,0.37998088]
[1742484173104,0.01862171,85791.0,85790.0,0.39163688]
[1742484173305,0.0003386,85791.0,85790.0,0.50805543]
[1742484173523,0.0003386,85791.0,85790.0,0.52259628]
[1742484173896,0.0003386,85791.0,85790.0,2.00805543]
[1742484174324,0.0003386,85791.0,85790.0,0.50405543]
[1742484174679,0.0003386,85791.0,85790.0,0.51005543]
[1742484174913,0.0003386,85791.0,85790.0,0.50405543]
[1742484175434,0.0003386,85791.0,85790.0,0.2928244]
[1742484175642,0.0003386,85791.0,85790.0,0.39972585]
[1742484176569,0.0003386,85791.0,85790.0,0.40572585]
[1742484176879,0.0003386,85791.0,85790.0,0.41138185]
[1742484177076,0.0003386,85791.0,85790.0,0.41738185]
[1742484177501,0.0003386,85791.0,85790.0,0.53695688]
[1742484178287,0.0003386,85791.0,85790.0,0.52530088]
[1742484180019,0.0003386,85791.0,85790.0,0.53695688]
[1742484180365,0.0003386,85791.0,85790.0,0.58787982]
[1742484180780,0.0003386,85791.0,85790.0,0.66877982]
[1742484180975,0.0003386,85791.0,85790.0,0.67377982]
[1742484181247,0.0003386,85791.0,85790.0,2.17377982]
[1742484181438,6e-07,85791.0,85790.0,2.21757982]
[1742484182222,6e-07,85791.0,85790.0,2.24257982]
[1742484182447,0.00860507,85823.0,85790.0,2.24257982]
[1742484182448,0.00860507,85823.0,85805.0,0.32204]
[1742484182651,0.00860507,85823.0,85805.0,1.15439588]
[1742484182986,0.22670364,85830.0,85805.0,1.15439588]
[1742484183198,0.302,85829.0,85805.0,1.19077797]
[1742484183386,0.002,85829.0,85805.0,1.19077797]
[1742484183656,0.302,85829.0,85805.0,1.19077797]
[1742484183879,0.00075473,85806.0,85805.0,1.19544797]
[1742484184091,0.01542048,85806.0,85805.0,1.19544797]
[1742484184313,0.00075473,85806.0,85805.0,1.19077797]
[1742484184521,0.01540299,85806.0,85805.0,1.19077797]
[1742484184722,0.00075473,85806.0,85805.0,1.19677797]
[1742484185304,0.00075473,85806.0,85805.0,1.22060545]
[1742484185711,0.00075473,85806.0,85805.0,1.22056545]
[1742484186185,0.00075473,85806.0,85805.0,1.1287246]
[1742484186390,0.00075473,85806.0,85805.0,1.09234251]
[1742484186568,0.01556624,85806.0,85805.0,1.09234251]
[1742484186705,0.00075473,85806.0,85805.0,1.10688336]
[1742484186919,0.00075473,85806.0,85805.0,1.14317178]
[1742484187584,0.0156292,85806.0,85805.0,1.14317178]
[1742484187833,0.00075473,85806.0,85805.0,1.14317178]
[1742484188035,0.01561463,85806.0,85805.0,1.14317178]
[1742484188235,0.00075473,85806.0,85805.0,1.14317178]
[1742484188437,0.00075473,85806.0,85805.0,1.12863093]
[1742484188638,0.00075473,85806.0,85805.0,1.09234251]
[1742484189287,0.01550826,85806.0,85805.0,1.09234251]
[1742484190267,0.01550826,85806.0,85805.0,0.02982748]
[1742484190469,0.3184808,85806.0,85805.0,0.02382748]
[1742484190751,0.33675919,85806.0,85805.0,0.02382748]
[1742484191157,0.26381377,85806.0,85805.0,0.02382748]
[1742484191546,0.2780675,85806.0,85805.0,0.02382748]
[1742484191747,0.2780675,85806.0,85805.0,0.14340251]
[1742484192104,0.2780675,85806.0,85805.0,0.52572851]
[1742484192280,0.50817796,85806.0,85805.0,0.29264251]
[1742484192481,0.27509496,85806.0,85805.0,0.17306748]
[1742484192692,1.774663,85806.0,85805.0,0.17306748]
[1742484192850,0.750219,85806.0,85805.0,0.02982748]
[1742484193257,0.750219,85806.0,85805.0,0.006]
[1742484193677,0.76849913,85806.0,85805.0,0.006]
[1742484194075,0.533108,85797.0,85796.0,0.0229616]
[1742484194279,0.3,85796.0,85788.0,0.23313]
[1742484194480,0.3,85796.0,85794.0,0.02312273]
[1742484194481,1.444987,85795.0,85794.0,0.02312273]
[1742484194717,1.420266,85795.0,85794.0,0.02312273]
[1742484194881,1.42320883,85795.0,85778.0,0.0001693]
[1742484195080,0.311657,85784.0,85778.0,0.0001693]
[1742484195306,0.3,85781.0,85778.0,0.0001693]
[1742484195746,0.3,85781.0,85780.0,0.2684031]
[1742484195887,0.3,85781.0,85780.0,0.38797813]
[1742484196102,0.30293315,85781.0,85780.0,0.38797813]
[1742484196458,0.30293315,85781.0,85780.0,0.40251898]
[1742484196459,0.00289187,85781.0,85780.0,0.40251898]
[1742484196868,0.0003386,85795.0,85794.0,0.248771]
[1742484197014,0.0003386,85795.0,85794.0,0.51162603]
[1742484197234,0.0003386,85795.0,85794.0,0.50762603]
[1742484198238,0.0003386,85795.0,85794.0,0.51362603]
[1742484198473,0.0003386,85795.0,85794.0,0.52816688]
[1742484199852,0.0003386,85795.0,85794.0,0.64966688]
[1742484199853,6e-07,85795.0,85794.0,0.64966688]
[1742484200095,6e-07,85795.0,85794.0,0.68595709]
[1742484200323,6e-07,85795.0,85794.0,0.65566688]
[1742484200490,6e-07,85795.0,85794.0,2.15566688]
[1742484200907,6e-07,85795.0,85794.0,2.14966688]
[1742484201426,6e-07,85795.0,85794.0,2.21695694]
[1742484202293,6e-07,85795.0,85794.0,2.24057247]
[1742484203115,6e-07,85795.0,85794.0,2.21057247]
[1742484203288,6e-07,85795.0,85794.0,2.23557247]
[1742484203704,6e-07,85795.0,85794.0,2.19328241]
[1742484203969,6e-07,85795.0,85794.0,2.16828241]
[1742484204384,6e-07,85795.0,85794.0,2.20428241]
[1742484204843,6e-07,85795.0,85794.0,2.23457168]
[1742484205055,6e-07,85795.0,85794.0,2.22957168]
[1742484205260,6e-07,85795.0,85794.0,1.88230656]
[1742484205472,6e-07,85795.0,85794.0,0.52554656]
[1742484205677,6e-07,85795.0,85794.0,0.51954656]
[1742484206713,0.0088473,85795.0,85794.0,0.53120156]
[1742484207121,6e-07,85795.0,85794.0,0.53120156]
[1742484207316,6e-07,85795.0,85794.0,0.58704874]
[1742484207492,6e-07,85795.0,85794.0,0.59304874]
[1742484207956,6e-07,85795.0,85794.0,0.58804874]
[1742484208370,6e-07,85795.0,85794.0,0.61804874]
[1742484208575,0.0003392,85815.0,85814.0,0.249715]
[1742484208778,0.0003392,85815.0,85814.0,1.07687088]
[1742484208982,0.01462589,85815.0,85814.0,1.08698336]
[1742484209186,0.0003392,85815.0,85814.0,1.09863636]
[1742484209573,0.01475412,85815.0,85814.0,1.18113636]
[1742484209864,0.0003392,85815.0,85814.0,1.18113636]
[1742484210062,0.302,85829.0,85814.0,1.18113636]
[1742484210063,0.002,85829.0,85825.0,0.26422385]
[1742484210275,0.002,85829.0,85825.0,0.38379888]
[1742484210474,0.002,85829.0,85825.0,1.94510521]